bitfinex/quotes_ETHUSD_20240928
["timestamp","ask_amount","ask_price","bid_price","bid_amount"]
[1727546401238,3.72926,2681.5,2681.2,0.7721]
[1727546401520,1.96154984,2681.7,2681.3,4.51193]
[1727546401734,1.96154984,2681.8,2681.4,4.58639924]
[1727546401898,5.69024984,2681.9,2681.5,1.61408292]
[1727546402078,3.7287,2681.9,2681.5,1.61408292]
[1727546402285,7.45753,2681.9,2681.5,1.61408292]
[1727546402479,3.72884,2681.8,2681.6,0.3821795]
[1727546402730,7.45749,2681.9,2681.6,0.3821795]
[1727546402883,3.7287,2681.9,2681.6,0.3821795]
[1727546403089,7.45749,2681.9,2681.6,0.3821795]
[1727546403290,3.7287,2681.9,2681.6,0.3821795]
[1727546403491,3.72884,2681.8,2681.6,0.3821795]
[1727546403799,3.7287,2681.9,2681.5,0.7825]
[1727546404184,3.72884,2681.8,2681.5,0.7825]
[1727546404885,3.72884,2681.8,2681.3,4.51193]
[1727546405086,3.72884,2681.8,2681.3,0.7825]
[1727546405291,3.72904,2681.7,2681.3,0.7825]
[1727546406140,0.3354,2681.6,2681.1,0.814]
[1727546406287,3.72945,2681.4,2680.9,3.72995]
[1727546406487,3.72945,2681.4,2680.9,4.54395]
[1727546407329,3.72937,2681.5,2680.9,4.54395]
[1727546407532,3.72933,2681.5,2680.9,8.27396]
[1727546407841,3.72933,2681.5,2680.9,4.54395]
[1727546407982,3.7294,2681.4,2680.9,4.54395]
[1727546408187,0.3354,2681.3,2680.9,0.814]
[1727546408685,3.7298,2681.2,2680.7,3.73035]
[1727546409631,3.7298,2681.2,2680.7,4.557841]
[1727546410730,7.45956,2681.2,2680.7,4.557841]
[1727546410894,3.72976,2681.2,2680.7,4.557841]
[1727546412034,3.72976,2681.2,2680.7,4.557781]
[1727546412332,3.72976,2681.2,2680.8,0.814]
[1727546413627,3.72976,2681.2,2680.8,5.0813981]
[1727546413795,4.06493,2681.3,2680.8,5.0813981]
[1727546414185,3.72953,2681.3,2680.8,5.0813981]
[1727546414896,3.72953,2681.3,2680.8,1.3511781]
[1727546417652,3.72968,2681.2,2680.8,1.3511781]
[1727546418633,3.72968,2681.2,2680.9,0.66467566]
[1727546418819,3.72968,2681.2,2681.0,0.795]
[1727546423616,3.72953,2681.3,2681.0,0.795]
[1727546425342,7.459,2681.4,2681.0,0.795]
[1727546425541,3.72948,2681.4,2681.0,0.795]
[1727546425746,7.45899,2681.4,2681.0,0.795]
[1727546426061,3.72953,2681.3,2681.0,0.795]
[1727546428533,3.72976,2681.2,2681.0,0.795]
[1727546428756,3.72981,2681.1,2680.7,0.795]
[1727546429365,3.72981,2681.1,2680.7,1.620612]
[1727546430958,3.72953,2681.3,2680.7,5.350942]
[1727546431267,3.72968,2681.2,2680.8,0.795]
[1727546433278,4.0647,2681.5,2680.9,0.795]
[1727546433447,3.72948,2681.4,2680.9,4.52507]
[1727546437571,3.72953,2681.3,2680.9,4.52507]
[1727546437873,3.72953,2681.3,2680.9,0.795]
[1727546439062,3.72982,2681.1,2680.9,0.795]
[1727546440479,3.72972,2681.2,2680.9,0.795]
[1727546440979,7.45914,2681.3,2680.9,0.795]
[1727546441282,3.72967,2681.2,2680.9,0.795]
[1727546442680,7.45914,2681.3,2680.9,0.795]
[1727546442871,3.72953,2681.3,2680.9,0.795]
[1727546447740,3.72912,2681.6,2681.1,4.5116]
[1727546447983,3.72907,2681.7,2681.2,3.72958]
[1727546448188,5.68628393,2681.9,2681.4,3.72939]
[1727546448358,5.68598393,2682.1,2681.5,5.29442853]
[1727546448558,3.7285,2682.1,2681.6,4.51089]
[1727546448943,5.68571393,2682.3,2681.7,1.56529853]
[1727546449146,3.72823,2682.3,2681.8,0.7818]
[1727546449377,3.72823,2682.3,2681.8,8.23938]
[1727546449603,9.41337393,2682.5,2681.9,3.72865]
[1727546449899,3.72804,2682.4,2681.9,3.72865]
[1727546450246,5.68531393,2682.6,2682.1,1.56529853]
[1727546450498,3.72783,2682.6,2682.2,0.7818]
[1727546450795,1.95748393,2682.8,2682.4,3.72797]
[1727546451093,3.72731,2682.9,2682.5,0.7818]
[1727546451390,4.133581,2682.9,2682.5,0.7818]
[1727546451774,3.72746,2682.8,2682.5,0.7818]
[1727546452758,0.406271,2682.9,2682.5,0.7818]
[1727546454290,4.133591,2682.9,2682.5,0.7818]
[1727546454492,0.406271,2682.9,2682.5,0.7818]
[1727546454692,3.72745,2682.8,2682.5,0.7818]
[1727546459585,3.72767,2682.7,2682.5,0.7818]
[1727546459786,7.45535,2682.7,2682.2,0.8311]
[1727546460556,3.72767,2682.7,2682.2,0.8311]
[1727546460779,3.72746,2682.8,2682.2,1.44357385]
[1727546460961,3.72746,2682.8,2682.3,3.72812]
[1727546461903,3.72746,2682.8,2682.4,0.8311]
[1727546462271,3.72736,2682.9,2682.4,0.8311]
[1727546462604,3.72746,2682.8,2682.4,0.8311]
[1727546462810,7.45477,2682.9,2682.4,0.8311]
[1727546463364,3.72736,2682.9,2682.4,0.8311]
[1727546464167,3.72717,2683.0,2682.5,3.72786]
[1727546464699,7.45419,2683.1,2682.5,3.72786]
[1727546465039,3.72703,2683.1,2682.6,4.55879]
[1727546465823,3.72689,2683.2,2682.7,3.72756]
[1727546466432,3.7268,2683.3,2682.7,3.72756]
[1727546466721,3.72654,2683.5,2682.8,4.55851]
[1727546466923,3.72663,2683.4,2682.8,4.55851]
[1727546467425,7.45361,2683.3,2682.8,0.8311]
[1727546467787,3.7269,2683.2,2682.8,0.8311]
[1727546468013,3.72704,2683.1,2682.8,0.8311]
[1727546468436,3.72738,2682.9,2682.5,0.8311]
[1727546468723,3.72751,2682.8,2682.5,0.8311]
[1727546469481,3.72738,2682.9,2682.5,0.8311]
[1727546469681,3.72718,2683.0,2682.5,4.55888]
[1727546470132,4.133361,2683.1,2682.5,4.55888]
[1727546470282,3.72683,2683.3,2682.7,0.8311]
[1727546470481,3.72692,2683.2,2682.7,4.55859]
[1727546471229,3.72683,2683.3,2682.7,4.55859]
[1727546471410,3.72657,2683.5,2682.7,3.72749]
[1727546471618,7.45314,2683.5,2682.9,3.72728]
[1727546471815,7.45314,2683.5,2683.0,0.8311]
[1727546472002,10.99597,2683.9,2683.1,0.90564178]
[1727546472003,3.72628,2683.7,2683.1,0.90564178]
[1727546472215,3.72634,2683.6,2683.2,0.8311]
[1727546472885,3.72628,2683.7,2683.2,0.8311]
[1727546473083,3.72671,2683.4,2683.2,0.8311]
[1727546473283,3.72675,2683.3,2683.2,0.8311]
[1727546474025,3.72655,2683.5,2683.2,0.8311]
[1727546474725,3.72668,2683.4,2683.2,0.8311]
[1727546475405,7.45311,2683.5,2683.2,0.8311]
[1727546475713,3.72661,2683.4,2683.2,0.8311]
[1727546476036,3.72661,2683.4,2682.9,3.72723]
[1727546476037,3.72679,2683.3,2683.0,0.7535]
[1727546477087,3.72679,2683.3,2682.8,0.7535]
[1727546477088,4.31599762,2683.3,2682.8,0.7535]
[1727546477495,3.72689,2683.2,2682.8,0.7535]
[1727546478312,4.31599762,2683.3,2682.8,0.7535]
[1727546478814,4.31599762,2683.3,2682.8,4.48093]
[1727546480347,4.31599762,2683.3,2682.8,4.48091]
[1727546480546,4.31599762,2683.3,2682.8,8.20832]
[1727546480846,3.72679,2683.3,2682.8,4.48091]
[1727546482964,3.72643,2683.6,2683.1,3.72701]
[1727546483246,0.3354,2683.8,2683.2,0.7535]
[1727546483247,3.72648,2683.5,2683.2,0.7535]
[1727546484329,1.56529853,2683.5,2682.1,0.7535]
[1727546484516,1.56529853,2683.5,2682.8,0.7535]
[1727546484517,7.45364,2683.3,2682.8,0.7535]
[1727546484720,0.3354,2683.4,2682.8,0.7535]
[1727546484906,3.72689,2683.2,2682.8,0.7535]
[1727546485918,3.7271,2683.1,2682.8,0.7535]
[1727546488455,3.7273,2683.0,2682.8,0.7535]
[1727546488622,3.7271,2683.1,2682.8,0.7535]
[1727546489463,7.45424,2683.1,2682.8,0.7535]
[1727546489759,3.7271,2683.1,2682.8,0.7535]
[1727546491469,3.72684,2683.3,2682.8,4.48094]
[1727546491470,7.45368,2683.3,2682.8,4.48094]
[1727546491677,3.72689,2683.2,2682.8,4.48094]
[1727546491957,3.72689,2683.2,2682.8,0.7535]
[1727546494360,3.72703,2683.1,2682.8,0.7535]
[1727546495940,3.72695,2683.2,2682.8,0.7535]
[1727546499380,3.72684,2683.3,2682.8,0.7535]
[1727546499594,3.72704,2683.1,2682.8,0.7535]
[1727546503302,3.72681,2683.3,2682.8,0.7535]
[1727546503303,3.72689,2683.2,2682.8,0.7535]
[1727546503893,3.72689,2683.2,2682.8,4.48093]
[1727546504258,3.72689,2683.2,2682.8,0.7535]
[1727546504491,7.45388,2683.2,2682.8,0.7535]
[1727546505292,7.45386,2683.2,2682.8,0.7535]
[1727546505866,3.72689,2683.2,2682.8,0.7535]
[1727546506068,1.9563795,2683.4,2683.0,3.72703]
[1727546506283,5.6828695,2683.5,2683.1,0.7711]
[1727546506617,3.72637,2683.6,2683.2,4.49798]
[1727546506828,5.6825895,2683.7,2683.2,4.49798]
[1727546507108,7.46041715,2683.7,2683.2,0.7711]
[1727546507303,5.50403765,2683.7,2683.2,0.7711]
[1727546508211,7.46041715,2683.7,2683.2,0.7711]
[1727546508381,5.6824695,2683.8,2683.2,0.7711]
[1727546508579,3.72635,2683.6,2683.2,0.7711]
[1727546515686,3.72622,2683.7,2683.2,4.49795]
[1727546515906,3.72622,2683.7,2683.2,5.320438]
[1727546516114,3.72622,2683.7,2683.2,1.593588]
[1727546517120,3.72635,2683.6,2683.2,1.593588]
[1727546517323,4.06175,2683.6,2683.2,0.7711]
[1727546517487,3.72615,2683.8,2683.3,0.7982]
[1727546517822,3.72635,2683.6,2683.3,0.7982]
[1727546521627,5.68210799,2683.9,2683.4,3.72653]
[1727546521841,3.72593,2683.9,2683.5,0.7982]
[1727546522194,3.72593,2683.9,2683.6,0.452478]
[1727546525035,3.72593,2683.9,2683.5,0.7982]
[1727546525497,4.06125,2684.0,2683.5,0.7982]
[1727546525700,3.72608,2683.8,2683.5,0.7982]
[1727546526036,5.29101853,2684.1,2683.5,0.7982]
[1727546526335,3.72599,2683.9,2683.5,1.250682]
[1727546527846,3.72607,2683.8,2683.5,1.250682]
[1727546528011,3.72607,2683.8,2683.5,0.7982]
[1727546529541,3.72599,2683.9,2683.5,0.7982]
[1727546541351,3.72607,2683.8,2683.5,0.7982]
[1727546541554,3.72599,2683.9,2683.5,0.7982]
[1727546542925,1.56529853,2683.7,2682.8,0.77825035]
[1727546543255,3.72671,2683.4,2683.0,0.7733]
[1727546544044,7.45342,2683.4,2683.0,0.7733]
[1727546544640,3.72713,2683.1,2682.7,0.7733]
[1727546544857,3.7269,2683.2,2682.7,4.873633]
[1727546545062,3.7269,2683.2,2682.8,0.8601263]
[1727546545778,3.72675,2683.3,2682.9,0.7733]
[1727546549593,3.72689,2683.2,2682.9,0.7733]
[1727546555469,3.72678,2683.3,2682.9,0.7733]
[1727546558416,3.72691,2683.2,2682.9,0.7733]
[1727546558570,3.72691,2683.2,2682.7,4.55465]
[1727546558571,7.45393,2683.2,2682.7,4.55465]
[1727546558774,3.72691,2683.2,2682.7,5.16664485]
[1727546559684,3.72691,2683.2,2682.7,5.16660485]
[1727546560018,3.7271,2683.1,2682.7,0.8271]
[1727546560390,1.56529853,2683.1,2682.7,0.8271]
[1727546560710,1.90069853,2683.1,2682.5,4.55496]
[1727546560890,7.454,2683.2,2682.7,0.8271]
[1727546561077,7.45396,2683.2,2682.7,4.55467]
[1727546561415,7.45396,2683.2,2682.7,0.8271]
[1727546561416,3.72706,2683.1,2682.7,0.8271]
[1727546565570,3.7272,2683.0,2682.7,0.8271]
[1727546567919,3.72703,2683.1,2682.7,0.8271]
[1727546568228,3.72703,2683.1,2682.7,1.655357]
[1727546568424,3.72697,2683.2,2682.7,5.382897]
[1727546568627,3.72675,2683.3,2682.9,0.8271]
[1727546568783,7.45344,2683.4,2683.0,0.455447]
[1727546568983,3.72675,2683.3,2682.9,0.8271]
[1727546570521,3.7267,2683.4,2682.9,0.8271]
[1727546571019,3.72676,2683.3,2682.9,0.8271]
[1727546572226,3.72676,2683.3,2682.9,1.28999936]
[1727546578643,3.7267,2683.4,2682.9,1.28999936]
[1727546578943,3.72677,2683.3,2682.9,1.28999936]
[1727546580705,3.7267,2683.4,2682.9,1.28999936]
[1727546581246,3.72678,2683.3,2682.9,1.28999936]
[1727546584062,3.7269,2683.2,2682.9,1.28999936]
[1727546584262,3.7269,2683.2,2682.9,0.8271]
[1727546584764,3.7269,2683.2,2682.6,7.45527]
[1727546584765,3.72712,2683.1,2682.7,0.763]
[1727546584928,3.72712,2683.1,2682.3,0.763]
[1727546584929,1.56529853,2682.9,2682.3,0.763]
[1727546585255,3.72759,2682.7,2682.3,0.763]
[1727546585459,3.72745,2682.8,2682.3,0.763]
[1727546585756,3.72745,2682.8,2682.3,4.49105]
[1727546586453,3.72761,2682.7,2682.3,0.763]
[1727546586658,3.72745,2682.8,2682.3,0.763]
[1727546587359,3.72759,2682.7,2682.3,0.763]
[1727546590060,3.72809,2682.4,2682.1,0.763]
[1727546590373,0.3354,2682.7,2681.5,0.763]
[1727546590374,1.56529853,2682.2,2681.5,0.763]
[1727546590666,3.7285,2682.1,2681.5,0.763]
[1727546590902,3.72856,2682.0,2681.5,4.49224]
[1727546591038,3.72856,2682.0,2681.5,1.74169685]
[1727546592376,3.72871,2681.9,2681.5,1.74169685]
[1727546595551,3.7285,2682.1,2681.5,5.47094685]
[1727546595755,7.45705,2682.1,2681.6,1.07656054]
[1727546595959,3.72794,2682.5,2681.9,4.54839]
[1727546596164,7.27,2682.6,2682.1,4.54821]
[1727546596360,3.72765,2682.7,2682.2,4.33962085]
[1727546596682,3.72765,2682.7,2682.2,0.61135085]
[1727546596991,3.72765,2682.7,2682.3,0.51595609]
[1727546598181,3.72765,2682.7,2682.4,0.8198]
[1727546598586,3.72739,2682.9,2682.4,0.8198]
[1727546598744,3.7276,2682.7,2682.4,0.8198]
[1727546598949,3.72739,2682.9,2682.4,0.8198]
[1727546599171,3.72753,2682.8,2682.4,1.32618961]
[1727546599372,3.72712,2683.1,2682.5,0.8198]
[1727546599581,7.45425,2683.1,2682.5,5.10468857]
[1727546600174,3.72728,2683.0,2682.5,5.10468857]
[1727546601002,3.72681,2683.3,2682.7,0.8198]
[1727546601154,3.72697,2683.2,2682.7,0.8198]
[1727546605590,3.72681,2683.3,2682.7,4.54737]
[1727546605790,3.72692,2683.2,2682.7,0.8198]
[1727546605993,3.72655,2683.5,2682.9,0.8198]
[1727546606202,3.72655,2683.5,2683.1,0.8198]
[1727546608256,3.72637,2683.6,2683.1,0.8198]
[1727546608469,3.72607,2683.8,2683.2,6.11184853]
[1727546608775,3.72607,2683.8,2683.3,0.8198]
[1727546609310,3.72598,2683.9,2683.3,4.54654]
[1727546609311,7.452,2683.9,2683.3,4.54654]
[1727546609482,3.72598,2683.9,2683.3,4.54654]
[1727546609802,3.72598,2683.9,2683.3,5.38134195]
[1727546610004,3.72598,2683.9,2683.4,3.72653]
[1727546610209,3.72598,2683.9,2683.5,0.8198]
[1727546611314,3.72571,2684.1,2683.5,4.54616]
[1727546611620,3.72571,2684.1,2683.5,5.0082287]
[1727546612309,3.72582,2684.0,2683.5,5.0082287]
[1727546612519,3.72592,2683.9,2683.5,0.8198]
[1727546612672,3.72609,2683.8,2683.5,0.8198]
[1727546613117,3.72608,2683.8,2683.5,0.8198]
[1727546613312,3.7257,2684.1,2683.5,5.000844]
[1727546614530,3.72586,2684.0,2683.5,5.000844]
[1727546614827,3.72578,2684.0,2683.6,0.50753675]
[1727546614988,3.72578,2684.0,2683.5,5.000844]
[1727546617485,3.72595,2683.9,2683.5,1.274444]
[1727546617725,3.72595,2683.9,2683.5,0.8198]
[1727546619099,3.7257,2684.1,2683.6,3.72629]
[1727546619602,3.7257,2684.1,2683.7,0.776]
[1727546619798,3.72555,2684.2,2683.7,4.50218]
[1727546620124,3.72555,2684.2,2683.7,4.9598662]
[1727546621040,3.72565,2684.1,2683.7,1.2336862]
[1727546621222,3.72588,2684.0,2683.7,0.776]
[1727546622231,3.72602,2683.9,2683.7,0.776]
[1727546622601,8.31597485,2684.1,2683.7,0.776]
[1727546623102,4.25480485,2684.1,2683.7,0.776]
[1727546623394,3.72571,2684.1,2683.7,0.776]
[1727546623907,3.72541,2684.3,2683.8,3.72603]
[1727546624114,3.72541,2684.3,2683.9,0.776]
[1727546627913,3.72524,2684.4,2683.9,4.5019]
[1727546628114,3.72524,2684.4,2683.9,5.38611851]
[1727546628319,3.72538,2684.3,2683.9,1.66021851]
[1727546628529,3.72538,2684.3,2683.9,0.776]
[1727546631042,7.45082,2684.3,2683.9,0.776]
[1727546631237,3.72557,2684.2,2683.9,0.776]
[1727546631614,3.72571,2684.1,2683.7,0.776]
[1727546632438,1.56529853,2684.2,2683.7,4.50216]
[1727546632639,5.29081853,2684.2,2683.7,4.50216]
[1727546632848,5.29081853,2684.2,2683.7,0.776]
[1727546632849,5.29109853,2684.0,2683.7,0.776]
[1727546633045,9.01694853,2684.0,2683.7,0.776]
[1727546633245,5.29109853,2684.0,2683.5,0.776]
[1727546633564,3.72627,2683.7,2683.5,0.776]
[1727546633720,3.72627,2683.7,2683.3,0.776]
[1727546634333,5.29140853,2683.8,2683.3,0.776]
[1727546634832,5.29140853,2683.8,2683.3,4.50273]
[1727546635236,3.72631,2683.7,2683.3,0.776]
[1727546635440,3.72631,2683.7,2683.1,0.776]
[1727546635631,3.72649,2683.5,2683.1,0.776]
[1727546636324,7.45261,2683.7,2683.1,0.776]
[1727546636522,3.7263,2683.7,2683.1,0.85053339]
[1727546636837,3.7263,2683.7,2683.1,0.776]
[1727546637051,3.7263,2683.7,2683.1,1.23375834]
[1727546637365,3.7262,2683.7,2683.2,3.72681]
[1727546638456,7.45248,2683.7,2683.2,3.72681]
[1727546638754,7.45251,2683.7,2683.1,1.23375834]
[1727546638956,3.7262,2683.7,2683.1,4.96069834]
[1727546639758,7.45251,2683.7,2683.1,4.96069834]
[1727546640202,0.3354,2683.9,2683.1,4.96069834]
[1727546640203,3.72635,2683.6,2683.1,4.96069834]
[1727546640771,3.72635,2683.6,2683.1,1.23375834]
[1727546640963,3.72635,2683.6,2683.1,0.776]
[1727546641377,3.38692545,2683.9,2683.1,0.776]
[1727546641714,3.7264,2683.6,2683.1,0.776]
[1727546641916,3.72662,2683.4,2683.1,0.776]
[1727546643927,3.72662,2683.4,2682.9,4.51259]
[1727546645718,3.7265,2683.5,2683.0,3.72713]
[1727546645921,7.45307,2683.5,2683.0,3.72713]
[1727546646124,3.7265,2683.5,2683.0,3.72713]
[1727546646431,4.0616,2683.7,2683.0,3.72713]
[1727546646432,3.72634,2683.6,2683.1,3.72702]
[1727546646617,3.72634,2683.6,2683.2,0.7853]
[1727546647200,3.72655,2683.5,2683.2,0.7853]
[1727546647534,3.72634,2683.6,2683.2,0.7853]
[1727546651496,3.7265,2683.5,2683.2,0.7853]
[1727546652329,3.72634,2683.6,2683.2,0.7853]
[1727546653031,7.45277,2683.6,2683.2,0.7853]
[1727546653234,3.72634,2683.6,2683.2,0.7853]
[1727546653397,7.45275,2683.6,2683.2,0.7853]
[1727546653795,3.7265,2683.5,2683.2,0.7853]
[1727546655230,3.72615,2683.8,2683.2,0.7853]
[1727546655531,3.72635,2683.6,2683.2,0.7853]
[1727546657609,3.72619,2683.7,2683.2,3.72688]
[1727546657823,3.72619,2683.7,2683.3,0.7798]
[1727546659634,3.72636,2683.6,2683.3,0.7798]
[1727546667428,3.72615,2683.8,2683.3,0.7798]
[1727546667857,3.72615,2683.8,2683.4,0.7758]
[1727546668042,3.72613,2683.8,2683.4,0.7758]
[1727546668247,3.72592,2683.9,2683.5,0.7758]
[1727546668450,3.72588,2684.0,2683.5,4.50226]
[1727546668770,3.72588,2684.0,2683.6,0.7758]
[1727546668966,3.72588,2684.0,2683.6,1.2632935]
[1727546669263,3.72559,2684.2,2683.7,0.7758]
[1727546669461,3.72559,2684.2,2683.7,3.72612]
[1727546669796,3.72559,2684.2,2683.8,0.7758]
[1727546671438,3.72532,2684.4,2683.8,1.28219363]
[1727546671644,3.72544,2684.3,2683.9,0.7758]
[1727546671983,3.72532,2684.4,2683.9,0.7758]
[1727546671984,3.72551,2684.2,2683.9,0.7758]
[1727546674090,3.72505,2684.6,2684.0,4.50156]
[1727546674457,3.72505,2684.6,2684.1,0.7758]
[1727546675596,3.72517,2684.5,2684.1,0.7758]
[1727546676194,3.72512,2684.5,2684.1,0.7758]
[1727546676393,3.72504,2684.6,2684.1,0.86850926]
[1727546676569,3.72484,2684.7,2684.2,0.8265]
[1727546677100,3.72474,2684.8,2684.2,0.8265]
[1727546677251,3.72474,2684.8,2684.3,0.8265]
[1727546677458,3.72482,2684.7,2684.3,0.8265]
[1727546677955,3.72455,2684.9,2684.4,0.8265]
[1727546678365,3.72445,2685.0,2684.4,0.8265]
[1727546678366,3.72467,2684.8,2684.4,0.8265]
[1727546678954,7.44896,2685.0,2684.4,4.55171]
[1727546679150,3.72445,2685.0,2684.5,0.8265]
[1727546679356,3.72445,2685.0,2684.6,0.8265]
[1727546683304,7.44894,2685.0,2684.6,0.8265]
[1727546684280,3.72454,2684.9,2684.6,0.8265]
[1727546685063,3.72445,2685.0,2684.6,0.8265]
[1727546685383,3.72469,2684.8,2684.6,0.8265]
[1727546700261,7.44946,2684.8,2684.6,0.8265]
[1727546700459,3.72481,2684.7,2684.6,0.8265]
[1727546700965,3.72469,2684.8,2684.6,0.8265]
[1727546707739,3.72446,2685.0,2684.6,0.8265]
[1727546707934,3.72455,2684.9,2684.6,0.8265]
[1727546709861,3.7247,2684.8,2684.6,0.8265]
[1727546711480,3.72522,2684.4,2684.2,0.8328]
[1727546711645,3.72522,2684.4,2684.0,0.8328]
[1727546711843,3.72522,2684.4,2684.1,0.455861]
[1727546713257,3.72541,2684.3,2684.0,0.8328]
[1727546714340,1.56293475,2684.2,2683.8,0.8328]
[1727546714593,5.28846475,2684.2,2683.5,3.7264]
[1727546714775,3.72553,2684.2,2683.6,3.72625]
[1727546714979,3.72553,2684.2,2683.7,0.8328]
[1727546715746,3.72571,2684.1,2683.7,0.8328]
[1727546716096,0.3354,2684.3,2683.7,1.3337645]
[1727546716097,4.06088,2684.3,2683.7,1.3337645]
[1727546716291,4.06088,2684.3,2683.7,5.0598445]
[1727546716460,4.06088,2684.3,2683.8,0.66972945]
[1727546716994,3.72553,2684.2,2683.8,0.66972945]
[1727546721175,7.45059,2684.4,2683.9,0.7681]
[1727546721375,3.72529,2684.4,2683.9,4.56850528]
[1727546721580,3.72529,2684.4,2684.0,1.44821695]
[1727546722162,7.78552,2684.6,2684.0,1.44821695]
[1727546722418,3.72504,2684.6,2684.1,0.7681]
[1727546722577,3.72504,2684.6,2684.2,0.2216317]
[1727546722759,3.72469,2684.8,2684.3,0.7681]
[1727546724074,3.7251,2684.5,2684.3,0.7681]
[1727546724372,3.7251,2684.5,2684.1,0.7681]
[1727546724577,3.7251,2684.5,2684.1,1.5812757]
[1727546725198,3.72488,2684.7,2684.2,4.56809258]
[1727546725385,3.72453,2684.9,2684.3,5.03146683]
[1727546725586,3.72453,2684.9,2684.4,0.7681]
[1727546725967,3.72453,2684.9,2684.4,4.49332]
[1727546726614,3.72453,2684.9,2684.5,0.8009]
[1727546726797,3.72453,2684.9,2684.5,1.75665868]
[1727546727001,4.05975,2685.1,2684.5,1.75665868]
[1727546727326,3.72435,2685.1,2684.6,0.8009]
[1727546727495,3.72435,2685.1,2684.6,4.52577]
[1727546729896,3.72435,2685.1,2684.6,0.8009]
[1727546730101,3.72435,2685.1,2684.6,4.52583]
[1727546730325,3.72435,2685.1,2684.7,0.452583]
[1727546733810,3.72445,2685.0,2684.6,0.8009]
[1727546734038,5.28728475,2685.1,2684.6,4.52583]
[1727546734612,5.28728475,2685.1,2684.7,0.452583]
[1727546735014,3.72435,2685.1,2684.7,0.452583]
[1727546740495,7.4487,2685.1,2684.7,0.452583]
[1727546740695,3.72435,2685.1,2684.7,0.452583]
[1727546741462,7.44871,2685.1,2684.7,0.452583]
[1727546741617,3.72435,2685.1,2684.7,0.452583]
[1727546743833,7.44871,2685.1,2684.7,0.452583]
[1727546744365,3.72435,2685.1,2684.7,0.452583]
[1727546744860,7.44869,2685.1,2684.7,0.452583]
[1727546745022,3.72434,2685.1,2684.7,0.452583]
[1727546745219,7.44871,2685.1,2684.7,0.452583]
[1727546745423,3.72434,2685.1,2684.7,0.452583]
[1727546747221,7.44868,2685.1,2684.7,0.452583]
[1727546747423,0.3354,2685.7,2684.9,0.7554]
[1727546747665,3.7239,2685.4,2684.9,0.7554]
[1727546748152,0.3354,2685.7,2684.9,1.35969147]
[1727546748360,3.72368,2685.6,2685.0,6.11717306]
[1727546748864,3.72372,2685.5,2685.1,0.7554]
[1727546751271,3.72391,2685.4,2685.1,0.7554]
[1727546752874,3.72421,2685.2,2684.7,0.7554]
[1727546753174,3.72429,2685.1,2684.7,1.29504468]
[1727546753380,0.00135183,2685.8,2685.3,1.24]
[1727546753563,0.00135183,2685.8,2685.5,0.7554]
[1727546753769,0.00135183,2685.8,2685.6,3.72352]
[1727546753932,0.00135183,2685.8,2685.7,0.82986102]
[1727546755370,0.00135183,2685.8,2685.7,4.47882]
[1727546756341,0.00135183,2685.8,2685.7,6.06745475]
[1727546757580,0.00135183,2685.8,2685.7,9.06745475]
[1727546757786,4.05725,2686.9,2686.4,0.7811]
[1727546758087,3.72185,2686.9,2686.4,0.7811]
[1727546758386,3.72174,2687.0,2686.4,4.50354]
[1727546758543,3.72177,2686.9,2686.4,0.7811]
[1727546758739,3.7219,2686.8,2686.4,0.7811]
[1727546759381,3.7219,2686.8,2686.4,1.231458]
[1727546759769,3.72216,2686.7,2686.4,1.231458]
[1727546759995,1.89833475,2687.1,2686.1,0.7811]
[1727546759996,3.72226,2686.6,2686.1,0.7811]
[1727546760156,1.89833475,2686.7,2685.8,0.7811]
[1727546760358,3.72282,2686.2,2685.8,0.7811]
[1727546760554,3.72287,2686.1,2685.8,0.7811]
[1727546760792,3.72306,2686.0,2685.8,0.7811]
[1727546761293,3.7233,2685.8,2685.5,0.7811]
[1727546761693,3.72342,2685.7,2685.0,0.7811]
[1727546761995,3.72379,2685.5,2685.0,4.50546]
[1727546762295,3.72379,2685.5,2685.1,0.822987]
[1727546762465,3.72379,2685.5,2685.0,4.50546]
[1727546762466,1.56293475,2685.6,2685.0,0.7811]
[1727546762792,2.0,2686.6,2684.7,3.72476]
[1727546762793,5.28683475,2685.4,2684.7,3.72476]
[1727546762974,3.72425,2685.2,2684.8,1.153573]
[1727546763292,3.72425,2685.1,2684.8,0.7811]
[1727546763493,3.72425,2685.2,2684.8,0.7811]
[1727546763794,3.72428,2685.1,2684.8,0.7811]
[1727546763995,3.72425,2685.2,2684.8,0.7811]
[1727546764192,3.72441,2685.0,2684.8,0.7811]
[1727546764399,3.72419,2685.2,2684.8,0.7811]
[1727546764683,3.72443,2685.0,2684.8,0.7811]
[1727546764887,3.72443,2685.0,2684.6,0.7811]
[1727546765048,3.72443,2685.0,2684.6,1.1536]
[1727546765248,7.44843,2685.2,2684.6,1.1536]
[1727546765583,3.72428,2685.1,2684.6,1.1536]
[1727546765778,3.72412,2685.2,2684.7,0.48786]
[1727546771781,3.72384,2685.4,2684.8,4.58012853]
[1727546771986,3.72384,2685.4,2684.9,0.7811]
[1727546772193,3.72384,2685.4,2684.9,4.50558]
[1727546772360,3.72384,2685.4,2685.0,0.0744827]
[1727546772559,3.72337,2685.8,2685.2,0.7811]
[1727546772964,3.72337,2685.8,2685.2,4.50509]
[1727546773679,7.44679,2685.8,2685.2,4.50509]
[1727546774014,3.72337,2685.8,2685.2,5.29388793]
[1727546775103,3.72309,2686.0,2685.4,3.72375]
[1727546775302,3.72309,2686.0,2685.5,3.72368]
[1727546775502,3.72309,2686.0,2685.6,0.7811]